Workbook

Sheet Home
B1: Midwest Hazelnut Enterprise Budget Worksheet Tool
B2: Original Verstion: June 8, 2012, Last Updated: December 4, 2022
B4: This spreadsheet tool helps you build an enterprise budget for your hazelnut enterprise one step at a time. Starting with Step 1, complete each Step in order by filling in the yellow boxes. The completed enterprise budget can be seen in the budget tab. This tool separates your planting into two parts: the hazelnut rows and the row-middles.
B8: Establishment | F8: Early-Production | J8: Full-Production | N8: Seedling Renovation
B9: Years 0-1 | F9: Years 2-5 | J9: Years 6-15 | N9: Year 8
R11: Developed By:
R12: Jason Fischbach
R13: Emerging Crops Outreach Specialist
R14: jason.fischbach@wisc.edu
U17: Helpful Tools
U19: Iowa Custom Rate Guide
U20: Machinery Cost Calculator
B21: Yield and Revenue | F21: Harvest Costs | J21: Row-Middle/Headland | N21: Harvester Costs
B22: Years 3-15 | F22: Years 3-15 | J22: Management

Sheet Steps 1-6
B2: Step 1 | F2: Step 3 | K2: Step 6a - Simple 3-wire 3D Fence
B3: Determine Your Planting Arrangement | F3: Determine Your Plant Costs | K3: Determine Your Perimeter Deer Fence Cost (if used)
F4: Enter the plant type and source, number, and cost per plant. | K4: Though hazelnuts are not preferred deer browse, a deer fence is recommended in areas with high deer pressure. Three fencing options are provided below. Enter costs as appropriate. Perimeter distance includes 15' buffer next to outer rows and headlands as entered in C14. At least 40' is recommended for headlands.
B5: Enter information about your hazelnut rows | F5: Plant Type and Source | G5: Cost/Plant | H5: # of Plants* | I5: Total Cost
B6: Item | C6: Value | F6: UMHDI half-sib seedlings | G6: $5.00 | H6: 500 | I6: =H6*G6 -> $2,500.00
B7: Total Row Feet To Be Planted (ft) | C7: 15000 | F7: UMHDI 1st Gen Varieties | G7: $5.25 | H7: 2000 | I7: =H7*G7 -> $10,500.00
B8: In-Row Plant Spacing (ft) | C8: 6 | I8: =H8*G8 -> 0
B9: total plants (#) | C9: =C7/C8 -> 2500 | I9: =H9*G9 -> 0 | K9: Step 6a - Simple 3-wire 3D Fence
B10: Row Width at Maturity (ft) | C10: 6 | I10: =H10*G10 -> 0 | K10: Items | L10: # | M10: unit cost | N10: Total Cost
B11: Total Planted Acres | C11: =(C7*C10)/43560 -> 2.07 | F11: Totals | H11: =SUM(H6:H10) -> 2500 | I11: =SUM(I6:I10) -> $13,000.00 | K11: 6' posts (2/20') | L11: =((((C7/C13)*2)+(C12*C13*2)+(15*4)+(C14*4))/20)*2 -> 225 | M11: $4.50 | N11: =L11*M11 -> $1,014.73
B12: Row Spacing at Establishment (ft) | C12: 12 | F12: * The total # of plants must match cell C9 of Step 1. | K12: Corner posts with bracing | L12: 4 | M12: $9.00 | N12: $36.00
B13: Number of Rows (#) | C13: 19 | K13: Wire/polyrope | L13: =(((C7/C13)*2)+(C13*C12*2)+(15*4)+(C14*4))*3 -> 6765 | M13: $0.09 | N13: $608.84
B14: Headland length (ft) | C14: 40 | F14: Step 4 | K14: Insulators 3 per 20' + corners | L14: =(L11/2)+((L11/2)*2)+12 -> 350 | M14: =5.49/25 -> $0.22 | N14: $76.91
B15: Total Planting Size (acres) | C15: =(((C7/C13)+(C14*2))*((C12*C13)+30))/43560 -> 5.15 | F15: Determine Your Tree Tube Costs (if used) | K15: Gate hardware | L15: 1 | M15: $30.00 | N15: $30.00
F16: Tree tubes are used to protect plants from herbivory and wind in the first two years. They can also act as an herbicide shield to allow use of glyphosate (Round-Up) in the establishment years. | K16: Energizer/grounding rod | L16: 1 | M16: $250.00 | N16: $250.00
K17: Total 3D Fence | N17: =SUM(N11:N16) -> $2,016.48
B18: Step 2
B19: Determine Your Land Costs | K19: Step 6b - 6 Wire Fence
B20: Enter your annual land ownership costs on a per acre basis OR if you are renting land, enter your annual cash rent payment. | F20: Tree Tube Protector + Stake | G20: Cost/Tube | H20: Total Cost | K20: Items | L20: # | M20: unit cost | N20: Total Cost
F21: 24" Vine Grow | G21: $2.20 | H21: =C9*G21 -> $5,500.00 | K21: 10' posts (1/20') | L21: =(((C7/C13)*2)+(C12*C13*2)+(15*4)+(C14*4))/20 -> 113 | N21: =L21*M21 -> 0
K22: Corner posts with bracing | L22: 4 | N22: 0
B23: Item | C23: Cost/Yr | D23: Unit | F23: Step 5 | K23: Wire/polyrope | L23: =((((C7/C13)*2)+(C12*C13*2)+(15*4)+(C14*4))*6) -> 13530 | N23: 0
B24: Property taxes | D24: ac | F24: Determine Your Drip Irrigation Costs (If used) | K24: Insulators 6 20' + corners | L24: =(L21*6)+(24) -> 700 | N24: 0
B25: Mortgage (principal and/or interest) | D25: ac | F25: Some form of irrigation is essential in the establishment year. This chart assumes use of drip irrigation arranged with 1/2" poly feeder lines and a 1" mainline attached to the water source. If watering by hand from a tank leave this step blank. | K25: Gate hardware | L25: 1 | N25: 0
B26: Insurance | D26: ac | K26: Energizer/grounding rod | L26: 1 | N26: 0
B27: Total Cost Per Acre | C27: =SUM(C24:C26) -> 0 | D27: ac | K27: Total 3D Fence | N27: =SUM(N21:N26) -> 0
B28: % Annual Increase | C28: 2%
K29: Step 6c - 8' Woven Wire Fence - Installed
B30: or | F30: Item | G30: # | H30: unit cost | I30: Total Cost | K30: Items | L30: # | M30: unit cost | N30: Total Cost
B31: Cash rent | C31: $100.00 | D31: ac | F31: 1/2" feeder tubing | G31: =C7 -> 15000 | H31: $0.11 | I31: =G31*H31 -> $1,650.00 | K31: Material costs (per lineal foot) | L31: =((C7/C13)*2)+(C12*C13*2)+(15*4)+(C14*4) -> 2255 | N31: =L31*M31 -> 0
B32: % Annual Increase | C32: 2% | F32: 1" mainline | G32: =(C12*C13)+50 -> 278 | H32: $0.65 | I32: $180.70 | K32: Installation labor (per lineal foot) | L32: =L31 -> 2255 | N32: 0
F33: emitters (2/plant) | G33: =C9*2 -> 5000 | H33: $0.33 | I33: $1,650.00 | K33: Total 3D Fence | N33: =SUM(N31:N32) -> 0
F34: end caps | G34: =C13+1 -> 20 | H34: $1.59 | I34: $31.80
F35: T connectors | G35: =C13 -> 19 | H35: $2.59 | I35: $49.21
F36: Head assembly and zone valves | G36: 1 | H36: $100.00 | I36: $100.00
F37: Total Drip System | I37: =SUM(I31:I36) -> $3,661.71

Sheet Steps 7-8
B1: Site Preparation and Planting Year Costs (Years 0-1)
B2: This enterprise budgeting tool assumes your planting has two parts: 1) the hazelnut rows, 2) the space between the rows (row middles). For this model, enter your production costs on a lineal foot basis. For example, when doing site preparation, how long does it take you to rototill a 1000' long row and how much does that cost you? You'll enter information on how you manage your row-middles on the "Alley-Cropping" step.
B6: Step 7a (Year 0) | G6: Step 8 (Year 1 - Planting Year)
B7: Determine Your Site Preparation Costs - Equipment | G7: Determine Your Planting Year Costs - Equipment
B8: List each action you use to prepare your rows for planting. Enter the number of hours per year for each action and the cost per hour. Lump the equipment cost with the operator labor cost. | G8: List each action you use in the establishment year to plant, water, weed or otherwise take care of your hazelnuts. Enter the number of hours per year for each action and the cost per hour. Lump the equipment cost with the equipment operator labor cost.
B11: Action | C11: Hours/1000 lineal feet | D11: Cost/hr | E11: Cost/Yr | G11: Action | H11: Hours/1000 lineal feet | I11: Cost/hr | J11: Cost/Yr
B12: Herbicide burndown (strips) - ATV sprayer | C12: 0.5 | D12: $40.00 | E12: =C12*D12*('Steps 1-6'!$C$7/1000) -> $300.00 | G12: In row weed control (herbicide) - backpack sprayer | H12: 0.25 | I12: $20.00 | J12: =H12*I12*('Steps 1-6'!$C$7/1000) -> $75.00
B13: Ripping (strips) - tractor and implement | C13: 0.25 | D13: $80.00 | E13: =C13*D13*('Steps 1-6'!$C$7/1000) -> $300.00 | J13: =H13*I13*('Steps 1-6'!$C$7/1000) -> 0
B14: Rototilling (strips) - tractor and implement | C14: 0.5 | D14: $80.00 | E14: =C14*D14*('Steps 1-6'!$C$7/1000) -> $600.00 | J14: =H14*I14*('Steps 1-6'!$C$7/1000) -> 0
E15: =C15*D15*('Steps 1-6'!$C$7/1000) -> 0 | J15: =H15*I15*('Steps 1-6'!$C$7/1000) -> 0
E16: =C16*D16*('Steps 1-6'!$C$7/1000) -> 0 | J16: =H16*I16*('Steps 1-6'!$C$7/1000) -> 0
J17: =H17*I17*('Steps 1-6'!$C$7/1000) -> 0
B18: Labor | J18: =H18*I18*('Steps 1-6'!$C$7/1000) -> 0
B19: List each action requiring hand labor, management, or consultants. Note: labor for actions using equipment is included in the table above.
G20: Labor
B21: Action | C21: Hours/yr | D21: Cost/hr | E21: Cost/Yr | G21: List each action requiring hand labor, management, or consultants in the establishment year. Note: labor for actions using equipment is included in the table above.
B22: Project coordination/planning/consultant | C22: 0 | D22: 0 | E22: =C22*D22 -> 0
G23: Action | H23: Hours/1000 lineal feet | I23: Cost/hr | J23: Cost/yr
B24: Step 7b | G24: Project coordination/planning/consultant | J24: =H24*I24*('Steps 1-6'!$C$7/1000) -> 0
B25: Determine Your Mulch and/or Herbicide Costs (Year 0 and 1) | G25: Planting | H25: 2 | I25: $18.00 | J25: =H25*I25*('Steps 1-6'!$C$7/1000) -> $540.00
B26: Enter the type of mulch, the amount per plant, and the cost per unit. Enter the herbicide name, the amount per unit, and cost per unit. Leave the yellow boxes blank if not using mulch and/or herbicides. | G26: Installing tree tubes | H26: 3 | I26: $18.00 | J26: =H26*I26*('Steps 1-6'!$C$7/1000) -> $810.00
G27: Installing drip irrigation | H27: 3 | I27: $18.00 | J27: =H27*I27*('Steps 1-6'!$C$7/1000) -> $810.00
G28: Applying mulch (organic or synthetic) | H28: 3 | I28: $18.00 | J28: =H28*I28*('Steps 1-6'!$C$7/1000) -> $810.00
B29: Item - Organic mulch | C29: Yds/plant | D29: Cost/yd | E29: Total Cost | G29: Deer repellent application | H29: 0.5 | I29: $18.00 | J29: =H29*I29*('Steps 1-6'!$C$7/1000) -> $135.00
B30: wood chips | C30: 0.05 | D30: $6.60 | E30: =C30*'Steps 1-6'!C9*D30 -> $825.00 | J30: =H30*I30*('Steps 1-6'!$C$7/1000) -> 0
J31: =H31*I31*('Steps 1-6'!$C$7/1000) -> 0
B32: Item - Synthetic mulch | C32: Row Feet | D32: Cost/ft | E32: Total Cost
C33: ='Steps 1-6'!C7 -> 15000 | E33: =C33*D33 -> 0
B35: Herbicide/Deer Repellent | C35: Unit | D35: Cost/Unit | E35: Total Cost
B36: Round-up before tillage and spots after | C36: 0.5 | D36: $18.00 | E36: =C36*D36 -> $9.00
B37: Plant Skydd | C37: 1 | D37: $80.00 | E37: =C37*D37 -> $80.00
E38: =C38*D38 -> 0
B40: Fertilizer | C40: lbs/ac | D40: Cost/Unit | E40: Total Cost
B41: ESN-urea | C41: 80 | D41: $0.86 | E41: =D41*C41*('Steps 1-6'!$C$11) -> $142.15
B42: Potassium sulfate | C42: 200 | D42: $0.69 | E42: =D42*C42*('Steps 1-6'!$C$11) -> $285.12
B43: Triple super phosphate | C43: 50 | D43: $0.70 | E43: =D43*C43*('Steps 1-6'!$C$11) -> $72.31

Sheet Step 9
B1: Early Production Costs (Years 2-5)
B2: As with Steps 7-8, only enter the production costs for the hazelnut rows. Do not enter costs for managing between the rows. Those costs are entered in the "Alley-Cropping" step.
B3: Enter the costs on a 1000 lineal feet basis. In other words, how long does it take you to weed whip 1000 lineal feet and how much does that cost you?
B5: Step 9a (Years 2-5) | G5: Step 9b
B6: Determine Your Annual Early-Production Costs - Equipment | G6: Determine Your Mulch, Fertilizer, and/or Herbicide Costs (Year 2-5)
B7: List each action you use to maintain your plants in the pre-production years. Enter the number of hours per year for each action and the cost per hour. Lump the equipment costs with the operator labor costs. | G7: Enter the type of mulch, the amount per plant, and the cost per unit. Enter the herbicide name, the amount per unit, and cost per unit. Leave the yellow boxes blank if not using mulch, fertilizer, and/or herbicides.
B10: Action | C10: Hours/1000 lineal feet/yr | D10: Cost/hr | E10: Cost/Yr | G10: Item - Organic mulch | H10: Yds/plant | I10: Cost/yd | J10: Total Cost
E11: =C11*D11*('Steps 1-6'!$C$7/1000) -> 0 | J11: =H11*'Steps 1-6'!C9*I11 -> 0
B12: In row weed control (herbicide) - backpack sprayer | C12: 0.25 | D12: $20.00 | E12: =C12*D12*('Steps 1-6'!$C$7/1000) -> $75.00
B13: In row weed control (weed whip) | C13: 0.5 | D13: $20.00 | E13: =C13*D13*('Steps 1-6'!$C$7/1000) -> $150.00 | G13: Herbicide/Deer Repellent | H13: Units | I13: Cost/Unit | J13: Total Cost
B14: Deer repellent - backpack sprayer | C14: 0.25 | D14: $20.00 | E14: =C14*D14*('Steps 1-6'!$C$7/1000) -> $75.00 | G14: glyphosate | H14: 0.5 | I14: $18.00 | J14: =H14*I14 -> $9.00
E15: =C15*D15*('Steps 1-6'!$C$7/1000) -> 0 | G15: Poast | H15: 0.5 | I15: $40.00 | J15: =H15*I15 -> $20.00
J16: =H16*I16 -> 0
B17: Labor | J17: =H17*I17 -> 0
B18: List each action requiring hand labor, management, or consultants. Note: labor for actions using equipment is included in the table above.
G19: Fertilizer | H19: lbs/ac | I19: Cost/Unit | J19: Total Cost
B20: Action | C20: Hours/1000 lineal feet/yr | D20: Cost/hr | E20: Cost/Yr | G20: ESN-urea | H20: 80 | I20: $0.86 | J20: =I20*H20*'Steps 1-6'!$C$11 -> $142.15
B21: Hand fertilizing | C21: 0.25 | D21: $18.00 | E21: =C21*D21*('Steps 1-6'!$C$7/1000) -> $67.50
B22: Deer repellent application | C22: 0.25 | D22: $18.00 | E22: =C22*D22*('Steps 1-6'!$C$7/1000) -> $67.50 | J22: =I22*H22*'Steps 1-6'!$C$11 -> 0
E23: =C23*D23 -> 0
E24: =C24*D24 -> 0 | G24: Step 9c
G25: Determine Your Re-Plant Plant Costs
G26: Enter your percent mortality and the cost of each replacement plant.
G28: Item | H28: Value
G29: Percent Replacement | H29: 3%
G30: Total Plants | H30: =H29*'Steps 1-6'!$C$9 -> 75
G31: Plant Cost | H31: $5.75

Sheet Step 10
B1: Full Production Costs (Years 6-15)
B2: As with Steps 7-8, only enter the production costs for the hazelnut rows. Do not enter costs for managing between the rows. Those costs are entered in the "Alley-Cropping" step. Enter the costs on a 1000 lineal feet basis. In other words, how long does it take you to weed whip 1000 lineal feet and how much does that cost you?
B5: Step 10a (Years 5-8) | G5: Step 10b
B6: Determine Your Annual Early Production Costs - Equipment | G6: Determine Your Mulch, Fertilizer, and/or Herbicide Costs (Years 5-8)
B7: List each action you use to maintain your plants in the early-production years. Enter the number of hours per year for each action and the cost per hour. Lump the equipment costs with the operator labor costs. | G7: Enter the type of mulch, the amount per plant, and the cost per unit. Enter the herbicide name, the amount per unit, and cost per unit. Leave the yellow boxes blank if not using mulch, fertilizer, and/or herbicides.
B10: Action | C10: Hours/1000 lineal feet/yr | D10: Cost/hr | E10: Cost/yr | G10: Item - Organic mulch | H10: Yds/plant | I10: Cost/yd | J10: Total Cost
B11: In row weed control (herbicide) - backpack sprayer | C11: 0.25 | D11: $20.00 | E11: =C11*D11*('Steps 1-6'!$C$7/1000) -> $75.00 | J11: =H11*'Steps 1-6'!C9*I11 -> 0
B12: In row weed control (weed whip) | C12: 0.5 | D12: $20.00 | E12: =C12*D12*('Steps 1-6'!$C$7/1000) -> $150.00
E13: =C13*D13*('Steps 1-6'!$C$7/1000) -> 0 | G13: Herbicide/Deer Repellent | H13: Units | I13: Cost/Unit | J13: Total Cost
J14: =H14*I14 -> 0
B15: Labor | J15: =H15*I15 -> 0
B16: Action | C16: Hours/1000 lineal feet/yr | D16: Cost/hr | E16: Cost/yr | J16: =H16*I16 -> 0
B17: Hand fertilizing | C17: 0.25 | D17: $18.00 | E17: =C17*D17*('Steps 1-6'!$C$7/1000) -> $67.50 | J17: =H17*I17 -> 0
E18: =C18*D18*('Steps 1-6'!$C$7/1000) -> 0
E19: =C19*D19*('Steps 1-6'!$C$7/1000) -> 0 | G19: Fertilizer | H19: lbs/ac | I19: Cost/Unit | J19: Total Cost
E20: =C20*D20*('Steps 1-6'!$C$7/1000) -> 0 | G20: ESN-Urea | H20: 80 | I20: $0.89 | J20: =H20*I20*'Steps 1-6'!$C$11 -> $147.11
J21: =H21*I21*'Steps 1-6'!$C$11 -> 0
J22: =H22*I22*'Steps 1-6'!$C$11 -> 0
J23: =H23*I23*'Steps 1-6'!$C$11 -> 0

Sheet Step 11
B2: Note About Renovation
B3: If planting seedlings (plants originating from seeds) it is likely that by Year 8 after planting some plants will be inferior to others with less vigor or low yields. Some growers choose to remove the poorest plants and replace them with new plants. If you do not plan to renovate leave the yellow boxes blank.
B7: Step 11a (Year 8) | G7: Step 11b
B8: Determine Your Renovation Costs - Equipment | G8: Determine Your Renovation Plant Costs
B9: List each action you use to renovate your planting. Enter the number of hours per year for each action and the cost per hour. Lump the equipment costs with the operator labor costs. | G9: Enter the percent of plants you plan on replacing and the cost per plant
G11: Item | H11: Value
B12: Action | C12: Hours/yr | D12: Cost/hr | E12: Cost/yr | G12: Percent Replacement
E13: =C13*D13 -> 0 | G13: Total Plants | H13: =H12*'Steps 1-6'!C9 -> 0
E14: =C14*D14 -> 0 | G14: Plant Cost
E15: 0
E16: 0
E17: 0
E18: 0
E19: 0
B21: Labor
B22: List each action requiring hand labor, management, or consultants. Note: labor for actions using equipment is included in the table above.
B24: Action | C24: Hours/yr | D24: Cost/hr | E24: Cost/yr
E25: =C25*D25 -> 0
E26: 0
E27: 0
E28: 0
E29: 0

Sheet Step 12
B2: Step 12a Yield Projections | I2: Step 12b Production Volumes and Revenue
B3: First, enter what percentage of your rows will be covered by hazelnut canopy in each year. Then, enter what percentage of your plants are improved cultivars and what percentage are seedlings (plants from seeds). Then, enter the average percent kernel. Finally, adjust the average projected yields based on whether you think your yields will be higher or lower than the baseline standard. Yields are expressed as ounces of kernel per square foot of canopy coverage. | I3: Determine Your Annual Harvest Production
I4: To determine revenue, enter the name of each market to which you sell your in-shell nuts and the price paid to you for each market. Enter the % of the total harvest sold to each market.
L8: Market 1: | M8: AHC | O8: Price: | P8: $1.50 | Q8: $/lb
D9: Improved Cultivars | F9: Seedlings | L9: Market 2: | O9: Price: | Q9: $/lb
B10: % of Your Planting: | D10: 90% | F10: 10% | L10: Market 3: | O10: Price: | Q10: $/lb
B11: Average % kernel: | D11: 38% | F11: 33%
D12: ounces of kernel/sq ft (UMHDI Projection) | E12: ounces of kernel/sq ft (Your Projection) | F12: ounces of kernel/sq ft (UMHDI Projection) | G12: ounces of kernel/sq ft (Your Projection) | J12: Cultivars | L12: Seedlings | N12: Total
B13: Year | C13: in-row canopy coverage | I13: Year | J13: total kernel yield | K13: total in-shell yield | L13: total kernel yield | M13: total in-shell yield | N13: planting in-shell yield | O13: % market 1 | P13: % market 2 | Q13: % market 3
B14: 3 | C14: 25% | D14: 0.02 | E14: 0.02 | F14: =D14*0.6 -> 0.01 | G14: 0.01 | I14: 3 | J14: =(((('Steps 1-6'!$C$7*'Steps 1-6'!$C$10)*C14)*$D$10)*E14)/16 -> 25 | K14: =J14/$D$11 -> 67 | L14: =(((('Steps 1-6'!$C$7*'Steps 1-6'!$C$10)*C14)*$F$10)*G14)/16 -> 1 | M14: =L14/$F$11 -> 4 | N14: =K14+M14 -> 71 | O14: 100%
B15: 4 | C15: 45% | D15: 0.17 | E15: 0.17 | F15: =D15*0.6 -> 0.10 | G15: 0.1 | I15: 4 | J15: =(((('Steps 1-6'!$C$7*'Steps 1-6'!$C$10)*C15)*$D$10)*E15)/16 -> 387 | K15: =J15/$D$11 -> 1019 | L15: =(((('Steps 1-6'!$C$7*'Steps 1-6'!$C$10)*C15)*$F$10)*G15)/16 -> 25 | M15: =L15/$F$11 -> 77 | N15: =K15+M15 -> 1096 | O15: 100%
B16: 5 | C16: 75% | D16: 0.28 | E16: 0.28 | F16: 0.17 | G16: 0.17 | I16: 5 | J16: =(((('Steps 1-6'!$C$7*'Steps 1-6'!$C$10)*C16)*$D$10)*E16)/16 -> 1063 | K16: 2798 | L16: =(((('Steps 1-6'!$C$7*'Steps 1-6'!$C$10)*C16)*$F$10)*G16)/16 -> 72 | M16: 217 | N16: 3015 | O16: 100%
B17: 6 | C17: 85% | D17: 0.42 | E17: 0.42 | F17: 0.25 | G17: 0.25 | I17: 6 | J17: =(((('Steps 1-6'!$C$7*'Steps 1-6'!$C$10)*C17)*$D$10)*E17)/16 -> 1807 | K17: 4756 | L17: =(((('Steps 1-6'!$C$7*'Steps 1-6'!$C$10)*C17)*$F$10)*G17)/16 -> 120 | M17: 362 | N17: 5118 | O17: 100%
B18: 7 | C18: 90% | D18: 0.62 | E18: 0.62 | F18: 0.37 | G18: 0.37 | I18: 7 | J18: =(((('Steps 1-6'!$C$7*'Steps 1-6'!$C$10)*C18)*$D$10)*E18)/16 -> 2825 | K18: 7434 | L18: =(((('Steps 1-6'!$C$7*'Steps 1-6'!$C$10)*C18)*$F$10)*G18)/16 -> 187 | M18: 568 | N18: 8001 | O18: 100%
B19: 8 | C19: 100% | D19: 0.66 | E19: 0.66 | F19: 0.40 | G19: 0.4 | I19: 8 | J19: =(((('Steps 1-6'!$C$7*'Steps 1-6'!$C$10)*C19)*$D$10)*E19)/16 -> 3341 | K19: 8793 | L19: =(((('Steps 1-6'!$C$7*'Steps 1-6'!$C$10)*C19)*$F$10)*G19)/16 -> 225 | M19: 682 | N19: 9475 | O19: 100%
B20: 9 | C20: 100% | D20: 0.72 | E20: 0.72 | F20: 0.43 | G20: 0.43 | I20: 9 | J20: =(((('Steps 1-6'!$C$7*'Steps 1-6'!$C$10)*C20)*$D$10)*E20)/16 -> 3645 | K20: 9592 | L20: =(((('Steps 1-6'!$C$7*'Steps 1-6'!$C$10)*C20)*$F$10)*G20)/16 -> 242 | M20: 733 | N20: 10325 | O20: 100%
B21: 10 | C21: 100% | D21: 0.72 | E21: 0.72 | F21: 0.43 | G21: 0.43 | I21: 10 | J21: =(((('Steps 1-6'!$C$7*'Steps 1-6'!$C$10)*C21)*$D$10)*E21)/16 -> 3645 | K21: 9592 | L21: =(((('Steps 1-6'!$C$7*'Steps 1-6'!$C$10)*C21)*$F$10)*G21)/16 -> 242 | M21: 733 | N21: 10325 | O21: 100%
B22: 11 | C22: 100% | D22: 0.85 | E22: 0.85 | F22: 0.51 | G22: 0.51 | I22: 11 | J22: =(((('Steps 1-6'!$C$7*'Steps 1-6'!$C$10)*C22)*$D$10)*E22)/16 -> 4303 | K22: 11324 | L22: =(((('Steps 1-6'!$C$7*'Steps 1-6'!$C$10)*C22)*$F$10)*G22)/16 -> 287 | M22: 869 | N22: 12193 | O22: 100%
B23: 12 | C23: 100% | D23: 0.72 | E23: 0.72 | F23: 0.43 | G23: 0.43 | I23: 12 | J23: =(((('Steps 1-6'!$C$7*'Steps 1-6'!$C$10)*C23)*$D$10)*E23)/16 -> 3645 | K23: 9592 | L23: =(((('Steps 1-6'!$C$7*'Steps 1-6'!$C$10)*C23)*$F$10)*G23)/16 -> 242 | M23: 733 | N23: 10325 | O23: 100%
B24: 13 | C24: 100% | D24: 0.85 | E24: 0.85 | F24: 0.51 | G24: 0.51 | I24: 13 | J24: =(((('Steps 1-6'!$C$7*'Steps 1-6'!$C$10)*C24)*$D$10)*E24)/16 -> 4303 | K24: 11324 | L24: =(((('Steps 1-6'!$C$7*'Steps 1-6'!$C$10)*C24)*$F$10)*G24)/16 -> 287 | M24: 869 | N24: 12193 | O24: 100%
B25: 14 | C25: 100% | D25: 0.72 | E25: 0.72 | F25: 0.43 | G25: 0.43 | I25: 14 | J25: =(((('Steps 1-6'!$C$7*'Steps 1-6'!$C$10)*C25)*$D$10)*E25)/16 -> 3645 | K25: 9592 | L25: =(((('Steps 1-6'!$C$7*'Steps 1-6'!$C$10)*C25)*$F$10)*G25)/16 -> 242 | M25: 733 | N25: 10325 | O25: 100%
B26: 15 | C26: 100% | D26: 0.85 | E26: 0.85 | F26: 0.51 | G26: 0.51 | I26: 15 | J26: =(((('Steps 1-6'!$C$7*'Steps 1-6'!$C$10)*C26)*$D$10)*E26)/16 -> 4303 | K26: 11324 | L26: =(((('Steps 1-6'!$C$7*'Steps 1-6'!$C$10)*C26)*$F$10)*G26)/16 -> 287 | M26: 869 | N26: 12193 | O26: 100%
B28: A Note on Yield Projections:
B29: The UMHDI yield projections shown are based on average yields of the 1st Generation cultivars as measured at the UMHDI Germplasm Trial in Bayfield, WI. Actual yields for your planting are likely to vary considerably. We use ounces of kernel per square foot of canopy coverage (yield density) because it better accounts for variation in plant size, making it easier to compare yields across a range of sites and plant ages. Thus, total yield from a planting depends on yield density and total canopy coverage.

Sheet Step 13
B2: Step 13a Harvest Costs | G2: Step 13b (Drying and Husking Costs) | L2: Hazelnut De-Husking Options (For Step 13b)
B3: Determine Your Annual Harvest Cost | G3: Determine Your Annual Drying and Husking Costs
B4: For each year choose whether to harvest by hand or with a machine. Use the "Harvester 1.0" tab to determine machine harvester costs or enter a custom rate if known. | G4: Enter the labor and equipment costs for husking and drying the hazelnuts | L4: Option | M4: lbs/hr | N4: Custom Rate ($/lb) | O4: Equipment Ownership Cost*
L5: Hand husking
L6: Bucket husker
H7: Husker Flow-Through Rate: | I7: 400 | J7: lbs/hr | L7: Super Squirrel husker
H8: Hrs of labor/hr of operation: | I8: 0.00 | J8: hrs | L8: UW-Extension drum husker
C9: Hand Harvest Rate: | D9: 13 | E9: lbs/hr | H9: Labor Rate: | I9: $10.00 | J9: $/hr | L9: Hasatsan husker
C10: Hand Harvest Labor: | D10: $15.00 | E10: $/hr | H10: Husker Lease Rate: | I10: 0 | J10: $/hr | L10: X12 drum husker
C11: Machine Harvest Rate: | D11: ='harvester 1.0'!F13 -> 4050 | E11: lbs/hr | L11: Other
C12: Machine Custom Rate: | D12: ='harvester 1.0'!F20 -> $967.69 | E12: $/lhr | G12: Year | H12: Lbs harvested | I12: Cost/Yr | L12: * The annual ownership and maintenance cost ammortized over 7 years. If the husking equipment is owned, use this annual cost and divide by the annual nut production to determine the annual cost per lb to enter in Step13b.
G13: 3 | H13: ='Step 12'!M14 -> 4 | I13: =((H13/$I$7)*$I$10)+(((H13/$I$7)*$I$8)*$I$9) -> 0
B14: Year | C14: Machine/Hand | D14: Cost/Yr | G14: 4 | H14: ='Step 12'!M15 -> 77 | I14: 0
B15: 3 | C15: Hand | D15: =IF(C15="Hand",(('Step 12'!N14/$D$9)*$D$10),(('Step 12'!N14/$D$11)*$D$12)) -> $81.78 | G15: 5 | H15: ='Step 12'!M16 -> 217 | I15: 0
B16: 4 | C16: Machine | D16: =IF(C16="Hand",(('Step 12'!N15/$D$9)*$D$10),(('Step 12'!N15/$D$11)*$D$12)) -> $261.84 | G16: 6 | H16: ='Step 12'!M17 -> 362 | I16: 0
B17: 5 | C17: Machine | D17: =IF(C17="Hand",(('Step 12'!N16/$D$9)*$D$10),(('Step 12'!N16/$D$11)*$D$12)) -> $720.40 | G17: 7 | H17: ='Step 12'!M18 -> 568 | I17: 0
B18: 6 | C18: Machine | D18: =IF(C18="Hand",(('Step 12'!N17/$D$9)*$D$10),(('Step 12'!N17/$D$11)*$D$12)) -> $1,222.95 | G18: 8 | H18: ='Step 12'!M19 -> 682 | I18: 0
B19: 7 | C19: Machine | D19: =IF(C19="Hand",(('Step 12'!N18/$D$9)*$D$10),(('Step 12'!N18/$D$11)*$D$12)) -> $1,911.85 | G19: 9 | H19: ='Step 12'!M20 -> 733 | I19: 0
B20: 8 | C20: Machine | D20: =IF(C20="Hand",(('Step 12'!N19/$D$9)*$D$10),(('Step 12'!N19/$D$11)*$D$12)) -> $2,263.82 | G20: 10 | H20: ='Step 12'!M21 -> 733 | I20: 0
B21: 9 | C21: Machine | D21: =IF(C21="Hand",(('Step 12'!N20/$D$9)*$D$10),(('Step 12'!N20/$D$11)*$D$12)) -> $2,467.03 | G21: 11 | H21: ='Step 12'!M22 -> 869 | I21: 0
B22: 10 | C22: Machine | D22: =IF(C22="Hand",(('Step 12'!N21/$D$9)*$D$10),(('Step 12'!N21/$D$11)*$D$12)) -> $2,467.03 | G22: 12 | H22: ='Step 12'!M23 -> 733 | I22: 0
B23: 11 | C23: Machine | D23: =IF(C23="Hand",(('Step 12'!N22/$D$9)*$D$10),(('Step 12'!N22/$D$11)*$D$12)) -> $2,913.43 | G23: 13 | H23: ='Step 12'!M24 -> 869 | I23: 0
B24: 12 | C24: Machine | D24: =IF(C24="Hand",(('Step 12'!N23/$D$9)*$D$10),(('Step 12'!N23/$D$11)*$D$12)) -> $2,467.03 | G24: 14 | H24: ='Step 12'!M25 -> 733 | I24: 0
B25: 13 | C25: Machine | D25: =IF(C25="Hand",(('Step 12'!N24/$D$9)*$D$10),(('Step 12'!N24/$D$11)*$D$12)) -> $2,913.43 | G25: 15 | H25: ='Step 12'!M26 -> 869 | I25: 0
B26: 14 | C26: Machine | D26: =IF(C26="Hand",(('Step 12'!N25/$D$9)*$D$10),(('Step 12'!N25/$D$11)*$D$12)) -> $2,467.03
B27: 15 | C27: Machine | D27: =IF(C27="Hand",(('Step 12'!N26/$D$9)*$D$10),(('Step 12'!N26/$D$11)*$D$12)) -> $2,913.43

Sheet alley-cropping
A1: Alley-Cropping
A2: Use this tool to determine your income (or expenses) from the borders, headlands, and row-middles of your planting.
A4: Step 1. Row-Middle/Headland Management | L4: Step 2. Alley-Cropping Income/Expense | Q4: Step 3. Mowing Costs
A5: Enter the width of the hazelnut rows to determine the area available for alley-cropping. Enter the percentage of the row-middles and headlands that are mowed or alley-cropped each year. | L5: Enter the following information per year to determine your annual alley-cropping income per year.
Q6: If not alley-cropping, use Step 3 to determine your annual mowing costs.
D7: Row Middles | G7: Headlands
A8: Year | B8: Hazelnut Row Width | C8: Row Middle Width | D8: Acres | E8: % mowed | F8: % alley-cropped | G8: Acres | H8: % mowed | I8: % alley-cropped | J8: Total Income or Cost | L8: Year | M8: Per Acre Total Costs ($/ac): | N8: Per Acre Total Revenue ($/ac): | O8: Total Alley-Cropping Income per acre | Q8: Time to Drive 100ft (min): | R8: 0.6
A9: 1 | B9: 3 | C9: ='Steps 1-6'!$C$12-'alley-cropping'!B9 -> 9 | D9: =((('Steps 1-6'!$C$7/'Steps 1-6'!$C$13)*('Steps 1-6'!$C$12-B9))*'Steps 1-6'!$C$13)/43560 -> 3.1 | E9: 0% | F9: 100% | G9: =((('Steps 1-6'!$C$13*'Steps 1-6'!$C$12)*40)*2)/43560 -> 0.4 | H9: 100% | I9: 0% | J9: =(D9*E9*$R$15)+(G9*H9*$R$15)+(D9*F9*O9)+(G9*I9*O9) -> $565.68 | L9: 1 | M9: $500.00 | N9: $700.00 | O9: =N9-M9 -> $200.00 | Q9: Mower Width (ft): | R9: 4
A10: 2 | B10: 3 | C10: ='Steps 1-6'!$C$12-'alley-cropping'!B10 -> 9 | D10: =((('Steps 1-6'!$C$7/'Steps 1-6'!$C$13)*('Steps 1-6'!$C$12-B10))*'Steps 1-6'!$C$13)/43560 -> 3.1 | E10: 0% | F10: 100% | G10: =((('Steps 1-6'!$C$13*'Steps 1-6'!$C$12)*40)*2)/43560 -> 0.4 | H10: 100% | I10: 0% | J10: $565.68 | L10: 2 | M10: $500.00 | N10: $700.00 | O10: =N10-M10 -> $200.00 | Q10: Mower Efficiency (%)*: | R10: 80%
A11: 3 | B11: 3 | C11: ='Steps 1-6'!$C$12-'alley-cropping'!B11 -> 9 | D11: =((('Steps 1-6'!$C$7/'Steps 1-6'!$C$13)*('Steps 1-6'!$C$12-B11))*'Steps 1-6'!$C$13)/43560 -> 3.1 | E11: 0% | F11: 100% | G11: =((('Steps 1-6'!$C$13*'Steps 1-6'!$C$12)*40)*2)/43560 -> 0.4 | H11: 100% | I11: 0% | J11: $565.68 | L11: 3 | M11: $500.00 | N11: $700.00 | O11: $200.00 | Q11: Hrs/acre: | R11: =(((43560/(R9*100))*R8)/60)/R10 -> 1.3
A12: 4 | B12: 3 | C12: ='Steps 1-6'!$C$12-'alley-cropping'!B12 -> 9 | D12: =((('Steps 1-6'!$C$7/'Steps 1-6'!$C$13)*('Steps 1-6'!$C$12-B12))*'Steps 1-6'!$C$13)/43560 -> 3.1 | E12: 0% | F12: 100% | G12: =((('Steps 1-6'!$C$13*'Steps 1-6'!$C$12)*40)*2)/43560 -> 0.4 | H12: 100% | I12: 0% | J12: $565.68 | L12: 4 | M12: $500.00 | N12: $700.00 | O12: $200.00 | Q12: Mowings/ac/yr: | R12: 4
A13: 5 | B13: 4 | C13: ='Steps 1-6'!$C$12-'alley-cropping'!B13 -> 8 | D13: =((('Steps 1-6'!$C$7/'Steps 1-6'!$C$13)*('Steps 1-6'!$C$12-B13))*'Steps 1-6'!$C$13)/43560 -> 2.8 | E13: 0% | F13: 100% | G13: =((('Steps 1-6'!$C$13*'Steps 1-6'!$C$12)*40)*2)/43560 -> 0.4 | H13: 100% | I13: 0% | J13: $496.81 | L13: 5 | M13: $500.00 | N13: $700.00 | O13: $200.00 | Q13: Total hrs/ac/yr: | R13: =R11*R12 -> 5.2
A14: 6 | B14: 4.5 | C14: ='Steps 1-6'!$C$12-'alley-cropping'!B14 -> 7.5 | D14: =((('Steps 1-6'!$C$7/'Steps 1-6'!$C$13)*('Steps 1-6'!$C$12-B14))*'Steps 1-6'!$C$13)/43560 -> 2.6 | E14: 0% | F14: 100% | G14: =((('Steps 1-6'!$C$13*'Steps 1-6'!$C$12)*40)*2)/43560 -> 0.4 | H14: 100% | I14: 0% | J14: $462.38 | L14: 6 | M14: $500.00 | N14: $700.00 | O14: $200.00 | Q14: Cost per hour (mower + operator): | R14: $25.00
A15: 7 | B15: 5 | C15: ='Steps 1-6'!$C$12-'alley-cropping'!B15 -> 7 | D15: =((('Steps 1-6'!$C$7/'Steps 1-6'!$C$13)*('Steps 1-6'!$C$12-B15))*'Steps 1-6'!$C$13)/43560 -> 2.4 | E15: 0% | F15: 100% | G15: =((('Steps 1-6'!$C$13*'Steps 1-6'!$C$12)*40)*2)/43560 -> 0.4 | H15: 100% | I15: 0% | J15: $427.94 | L15: 7 | M15: $500.00 | N15: $700.00 | O15: $200.00 | Q15: Cost per Acre Per Year: | R15: =-R14*R13 -> $(129.32)
A16: 8 | B16: ='Steps 1-6'!C10 -> 6 | C16: ='Steps 1-6'!$C$12-'alley-cropping'!B16 -> 6 | D16: =((('Steps 1-6'!$C$7/'Steps 1-6'!$C$13)*('Steps 1-6'!$C$12-B16))*'Steps 1-6'!$C$13)/43560 -> 2.1 | E16: 0% | F16: 100% | G16: =((('Steps 1-6'!$C$13*'Steps 1-6'!$C$12)*40)*2)/43560 -> 0.4 | H16: 100% | I16: 0% | J16: $359.07 | L16: 8 | M16: $500.00 | N16: $700.00 | O16: $200.00 | Q16: *Percent of time mowing, as opposed to turning or mowing the same ground
A17: 9 | B17: 6 | C17: 6 | D17: =((('Steps 1-6'!$C$7/'Steps 1-6'!$C$13)*('Steps 1-6'!$C$12-B17))*'Steps 1-6'!$C$13)/43560 -> 2.1 | E17: 100% | F17: 0% | G17: =((('Steps 1-6'!$C$13*'Steps 1-6'!$C$12)*40)*2)/43560 -> 0.4 | H17: 100% | I17: 0% | J17: $(321.34) | L17: 9 | O17: 0
A18: 10 | B18: 6 | C18: 6 | D18: =((('Steps 1-6'!$C$7/'Steps 1-6'!$C$13)*('Steps 1-6'!$C$12-B18))*'Steps 1-6'!$C$13)/43560 -> 2.1 | E18: 100% | F18: 0% | G18: =((('Steps 1-6'!$C$13*'Steps 1-6'!$C$12)*40)*2)/43560 -> 0.4 | H18: 100% | I18: 0% | J18: $(321.34) | L18: 10 | O18: 0
A19: 11 | B19: 6 | C19: 6 | D19: =((('Steps 1-6'!$C$7/'Steps 1-6'!$C$13)*('Steps 1-6'!$C$12-B19))*'Steps 1-6'!$C$13)/43560 -> 2.1 | E19: 0% | F19: 0% | G19: =((('Steps 1-6'!$C$13*'Steps 1-6'!$C$12)*40)*2)/43560 -> 0.4 | H19: 100% | I19: 0% | J19: $(54.15) | L19: 11 | O19: 0
A20: 12 | B20: 6 | C20: 6 | D20: =((('Steps 1-6'!$C$7/'Steps 1-6'!$C$13)*('Steps 1-6'!$C$12-B20))*'Steps 1-6'!$C$13)/43560 -> 2.1 | E20: 0% | F20: 0% | G20: =((('Steps 1-6'!$C$13*'Steps 1-6'!$C$12)*40)*2)/43560 -> 0.4 | H20: 100% | I20: 0% | J20: $(54.15) | L20: 12 | O20: 0
A21: 13 | B21: 6 | C21: 6 | D21: =((('Steps 1-6'!$C$7/'Steps 1-6'!$C$13)*('Steps 1-6'!$C$12-B21))*'Steps 1-6'!$C$13)/43560 -> 2.1 | E21: 0% | F21: 0% | G21: =((('Steps 1-6'!$C$13*'Steps 1-6'!$C$12)*40)*2)/43560 -> 0.4 | H21: 100% | I21: 0% | J21: $(54.15) | L21: 13 | O21: 0
A22: 14 | B22: 6 | C22: 6 | D22: =((('Steps 1-6'!$C$7/'Steps 1-6'!$C$13)*('Steps 1-6'!$C$12-B22))*'Steps 1-6'!$C$13)/43560 -> 2.1 | E22: 0% | F22: 0% | G22: =((('Steps 1-6'!$C$13*'Steps 1-6'!$C$12)*40)*2)/43560 -> 0.4 | H22: 100% | I22: 0% | J22: $(54.15) | L22: 14 | O22: 0
A23: 15 | B23: 6 | C23: 6 | D23: =((('Steps 1-6'!$C$7/'Steps 1-6'!$C$13)*('Steps 1-6'!$C$12-B23))*'Steps 1-6'!$C$13)/43560 -> 2.1 | E23: 0% | F23: 0% | G23: =((('Steps 1-6'!$C$13*'Steps 1-6'!$C$12)*40)*2)/43560 -> 0.4 | H23: 100% | I23: 0% | J23: $(54.15) | L23: 15 | O23: 0

Sheet harvester 1.0
A1: Harvester 1.0 (For Step 14a)
A3: This tool calculates the per lb cost of mechanical harvest using the assumptions you enter in the yellow boxes below. For the most accurate calculation possible, enter the assumptions to reflect how many lineal feet the harvester might harvest in a growing season across multiple farms.
A7: Enter Values For the Variables Below | E7: Mechanical Harvest Model Results
A9: Harvester Purchase Cost ($): | B9: $100,000 | E9: Planting Size (acres): | F9: =((B19/B22)*(B21*B22))/43560 -> 43.0
A10: Ammortization Period (years): | B10: 7 | E10: Yield Per Row-Foot (lbs in-shell nuts): | F10: =(B28*F9)/B19 -> 0.76
A11: Annual Maintenance Costs ($): | B11: $3,000 | E11: Total Harvested Yield (lbs in-shell nuts): | F11: =(F10*B19)*B29 -> 85227
A12: Annual Insurance Cost ($): | B12: $300 | E12: Annual Operating Time (hrs): | F12: =(((B19*B20)/5280)/(B18))/B30 -> 21.0
A13: Annual Borrowing Cost ($): | B13: $1,000 | E13: Harvest Rate (lbs/hr): | F13: =F11/F12 -> 4050
A14: Annual Storage Costs ($): | B14: 0
A15: Annual Transportation Costs ($): | B15: 0 | E15: Annual Operator Cost ($): | F15: =F12*B25 -> $947
A16: Fuel Price ($/gal): | B16: $4.75 | E16: Annual Assistant(s) Cost ($): | F16: =(F12*B26*B27) -> $631
A17: Fuel Efficiency (gal/hr): | B17: 2.0 | E17: Annual Fuel Cost ($): | F17: =(F12*B17)*B16 -> $199.92
A18: Average Drive Speed (mph): | B18: 1.5 | E18: Annual Harvester Ownership Cost ($): | F18: =(B9/B10)+B11+B12+B13+B14+B15 -> $18,586
A19: Total Row Length in Planting (linear ft): | B19: 125000 | E19: Mechanical Harvest Cost ($/acre): | F19: =(F15+F16+F17+F18)/F9 -> $473
A20: Harvest Passes Per Row (#): | B20: 1 | E20: Mechancial Harvest Cost ($/hr): | F20: =(F15+F16+F17+F18)/F12 -> $968
A21: Row Spacing (ft): | B21: 15 | E21: Mechanical Harvest Cost ($/lb in-shell): | F21: =(F15+F17+F18+F16)/F11 -> $0.24
A22: In-Row Plant Spacing (ft): | B22: 6
A23: Hand-Picking Rate (lbs in-shell/hr): | B23: 13 | E23: Equivalent Hand Harvest Labor Cost ($/lb in-shell): | F23: =((F11/B23)*B24)/F11 -> $1.15
A24: Hand-Picking Labor Rate ($/hr): | B24: $15.00
A25: Harvester Operator Rate ($/hr): | B25: $45.00
A26: Hours of Assistant Labor Per Hour Of Operator Labor: | B26: 2
A27: Harvester Assistants Labor Rate ($/hr): | B27: $15.00
A28: In-Shell Yield (lbs/acre): | B28: 2200
A29: Harvest Efficiency (decimal)*: | B29: 0.9
A30: Field Efficiency (decimal)**: | B30: 0.75
A31: In-Shell Pay Price ($/lb): | B31: $1.50
A33: * percentage of total yield captured by harvester unit
A34: ** percentage of operating time driving down the rows

Sheet budget
B1: Your Hazelnut Production Enterprise Budget (Year 0 -15)
D2: Year
D3: Establishment | F3: Early-Production | J3: Full-Production
B4: Revenue | D4: 0 | E4: 1 | F4: 2 | G4: 3 | H4: 4 | I4: 5 | J4: 6 | K4: 7 | L4: 8 | M4: 9 | N4: 10 | O4: 11 | P4: 12 | Q4: 13 | R4: 14 | S4: 15
B5: In-shell nut production (lbs) | D5: 0 | E5: 0 | F5: 0 | G5: ='Step 12'!N14 -> 71 | H5: ='Step 12'!N15 -> 1096 | I5: ='Step 12'!N16 -> 3015 | J5: ='Step 12'!N17 -> 5118 | K5: ='Step 12'!N18 -> 8001 | L5: ='Step 12'!N19 -> 9475 | M5: ='Step 12'!N20 -> 10325 | N5: ='Step 12'!N21 -> 10325 | O5: ='Step 12'!N22 -> 12193 | P5: ='Step 12'!N23 -> 10325 | Q5: ='Step 12'!N24 -> 12193 | R5: ='Step 12'!N25 -> 10325 | S5: ='Step 12'!N26 -> 12193
B6: In-shell nut sales
B7: Market 1 - price ($/lb in-shell): | C7: ='Step 12'!P8 -> $1.50 | G7: ='Step 12'!P8*('Step 12'!O14*'Step 12'!N14) -> $106 | H7: ='Step 12'!P8*'Step 12'!O15*'Step 12'!N15 -> $1,644 | I7: ='Step 12'!P8*'Step 12'!O16*'Step 12'!N16 -> $4,523 | J7: ='Step 12'!P8*'Step 12'!O17*'Step 12'!N17 -> $7,677 | K7: ='Step 12'!P8*'Step 12'!O18*'Step 12'!N18 -> $12,002 | L7: ='Step 12'!P8*'Step 12'!O19*'Step 12'!N19 -> $14,212 | M7: ='Step 12'!P8*'Step 12'!O20*'Step 12'!N20 -> $15,488 | N7: ='Step 12'!P8*'Step 12'!O21*'Step 12'!N21 -> $15,488 | O7: ='Step 12'!P8*'Step 12'!O22*'Step 12'!N22 -> $18,290 | P7: ='Step 12'!P8*'Step 12'!O23*'Step 12'!N23 -> $15,488 | Q7: ='Step 12'!P8*'Step 12'!O24*'Step 12'!N24 -> $18,290 | R7: ='Step 12'!P8*'Step 12'!O25*'Step 12'!N25 -> $15,488 | S7: ='Step 12'!P8*'Step 12'!O26*'Step 12'!N26 -> $18,290
B8: Market 2 - price ($/lb in-shell): | C8: ='Step 12'!P9 -> 0 | G8: ='Step 12'!P9*'Step 12'!P14*'Step 12'!N14 -> 0 | H8: ='Step 12'!P9*'Step 12'!P15*'Step 12'!N15 -> 0 | I8: ='Step 12'!P9*'Step 12'!P16*'Step 12'!N16 -> 0 | J8: ='Step 12'!P9*'Step 12'!P17*'Step 12'!N17 -> 0 | K8: ='Step 12'!P9*'Step 12'!P18*'Step 12'!N18 -> 0 | L8: ='Step 12'!P9*'Step 12'!P19*'Step 12'!N19 -> 0 | M8: ='Step 12'!P9*'Step 12'!P20*'Step 12'!N20 -> 0 | N8: ='Step 12'!P9*'Step 12'!P21*'Step 12'!N21 -> 0 | O8: ='Step 12'!P9*'Step 12'!P22*'Step 12'!N22 -> 0 | P8: ='Step 12'!P9*'Step 12'!P23*'Step 12'!N23 -> 0 | Q8: ='Step 12'!P9*'Step 12'!P24*'Step 12'!N24 -> 0 | R8: ='Step 12'!P9*'Step 12'!P25*'Step 12'!N25 -> 0 | S8: ='Step 12'!P9*'Step 12'!P26*'Step 12'!N26 -> 0
B9: Market 3 - price ($/lb in-shell): | C9: ='Step 12'!P10 -> 0 | G9: ='Step 12'!P10*'Step 12'!Q14*'Step 12'!N14 -> 0 | H9: ='Step 12'!P10*'Step 12'!Q15*'Step 12'!N15 -> 0 | I9: ='Step 12'!P10*'Step 12'!Q16*'Step 12'!N16 -> 0 | J9: ='Step 12'!P10*'Step 12'!Q17*'Step 12'!N17 -> 0 | K9: ='Step 12'!P10*'Step 12'!Q18*'Step 12'!N18 -> 0 | L9: ='Step 12'!P10*'Step 12'!Q19*'Step 12'!N19 -> 0 | M9: ='Step 12'!P10*'Step 12'!Q20*'Step 12'!N20 -> 0 | N9: ='Step 12'!P10*'Step 12'!Q21*'Step 12'!N21 -> 0 | O9: ='Step 12'!P10*'Step 12'!Q22*'Step 12'!N22 -> 0 | P9: ='Step 12'!P10*'Step 12'!Q23*'Step 12'!N23 -> 0 | Q9: ='Step 12'!P10*'Step 12'!Q24*'Step 12'!N24 -> 0 | R9: ='Step 12'!P10*'Step 12'!Q25*'Step 12'!N25 -> 0 | S9: ='Step 12'!P10*'Step 12'!Q26*'Step 12'!N26 -> 0
B11: Total Gross Revenue | D11: =SUM(D7:D9) -> 0 | E11: 0 | F11: 0 | G11: $106 | H11: $1,644 | I11: $4,523 | J11: $7,677 | K11: $12,002 | L11: $14,212 | M11: $15,488 | N11: $15,488 | O11: $18,290 | P11: $15,488 | Q11: $18,290 | R11: $15,488 | S11: $18,290
B13: Expenses
B14: Land Cost
B15: Owned | D15: =(SUM('Steps 1-6'!$C$24:$C$26))*'Steps 1-6'!$C$11 -> 0 | E15: =D15*(1+'Steps 1-6'!$C$28) -> 0 | F15: =E15*(1+'Steps 1-6'!$C$28) -> 0 | G15: =F15*(1+'Steps 1-6'!$C$28) -> 0 | H15: =G15*(1+'Steps 1-6'!$C$28) -> 0 | I15: =H15*(1+'Steps 1-6'!$C$28) -> 0 | J15: =I15*(1+'Steps 1-6'!$C$28) -> 0 | K15: =J15*(1+'Steps 1-6'!$C$28) -> 0 | L15: =K15*(1+'Steps 1-6'!$C$28) -> 0 | M15: =L15*(1+'Steps 1-6'!$C$28) -> 0 | N15: =M15*(1+'Steps 1-6'!$C$28) -> 0 | O15: =N15*(1+'Steps 1-6'!$C$28) -> 0 | P15: =O15*(1+'Steps 1-6'!$C$28) -> 0 | Q15: =P15*(1+'Steps 1-6'!$C$28) -> 0 | R15: =Q15*(1+'Steps 1-6'!$C$28) -> 0 | S15: =R15*(1+'Steps 1-6'!$C$28) -> 0
B16: Rented | D16: ='Steps 1-6'!$C$31*'Steps 1-6'!$C$11 -> $207 | E16: =D16*(1+'Steps 1-6'!$C$32) -> $211 | F16: =E16*(1+'Steps 1-6'!$C$32) -> $215 | G16: =F16*(1+'Steps 1-6'!$C$32) -> $219 | H16: =G16*(1+'Steps 1-6'!$C$32) -> $224 | I16: =H16*(1+'Steps 1-6'!$C$32) -> $228 | J16: =I16*(1+'Steps 1-6'!$C$32) -> $233 | K16: =J16*(1+'Steps 1-6'!$C$32) -> $237 | L16: =K16*(1+'Steps 1-6'!$C$32) -> $242 | M16: =L16*(1+'Steps 1-6'!$C$32) -> $247 | N16: =M16*(1+'Steps 1-6'!$C$32) -> $252 | O16: =N16*(1+'Steps 1-6'!$C$32) -> $257 | P16: =O16*(1+'Steps 1-6'!$C$32) -> $262 | Q16: =P16*(1+'Steps 1-6'!$C$32) -> $267 | R16: =Q16*(1+'Steps 1-6'!$C$32) -> $273 | S16: =R16*(1+'Steps 1-6'!$C$32) -> $278
B17: Supplies and Materials
B18: Plants | D18: 0 | E18: =SUM('Steps 1-6'!I6:I10) -> $13,000 | F18: ='Step 9'!H30*'Step 9'!H31 -> $431 | G18: 0 | H18: 0 | I18: 0 | J18: 0 | K18: 0 | L18: ='Step 11'!H13*'Step 11'!H14 -> 0 | M18: 0 | N18: 0 | O18: 0 | P18: 0 | Q18: 0 | R18: 0 | S18: 0
B19: Drip Irrigation | D19: 0 | E19: ='Steps 1-6'!I37 -> $3,662 | F19: 0 | G19: 0 | H19: 0 | I19: 0 | J19: 0 | K19: 0 | L19: 0 | M19: 0 | N19: 0 | O19: 0 | P19: 0 | Q19: 0 | R19: 0 | S19: 0
B20: Deer Fencing | E20: ='Steps 1-6'!N17+'Steps 1-6'!N27+'Steps 1-6'!N33 -> $2,016
B21: Tree Tubes | D21: 0 | E21: ='Steps 1-6'!H21 -> $5,500 | F21: 0 | G21: 0 | H21: 0 | I21: 0 | J21: 0 | K21: 0 | L21: 0 | M21: 0 | N21: 0 | O21: 0 | P21: 0 | Q21: 0 | R21: 0 | S21: 0
B22: Fertilizer | D22: ='Steps 7-8'!E41+'Steps 7-8'!E42+'Steps 7-8'!E43 -> $500 | E22: 0 | F22: =SUM('Step 9'!J20:J22) -> $142 | G22: =SUM('Step 9'!$J$20:$J$22) -> $142 | H22: =SUM('Step 9'!$J$20:$J$22) -> $142 | I22: =SUM('Step 9'!$J$20:$J$22) -> $142 | J22: =SUM('Step 10'!$J$20:$J$23) -> $147 | K22: =SUM('Step 10'!$J$20:$J$23) -> $147 | L22: =SUM('Step 10'!$J$20:$J$23) -> $147 | M22: =SUM('Step 10'!$J$20:$J$23) -> $147 | N22: =SUM('Step 10'!$J$20:$J$23) -> $147 | O22: =SUM('Step 10'!$J$20:$J$23) -> $147 | P22: =SUM('Step 10'!$J$20:$J$23) -> $147 | Q22: =SUM('Step 10'!$J$20:$J$23) -> $147 | R22: =SUM('Step 10'!$J$20:$J$23) -> $147 | S22: =SUM('Step 10'!$J$20:$J$23) -> $147
B23: Herbicide/Deer Repellent | D23: 0 | E23: =SUM('Steps 7-8'!E36:E38) -> $89 | F23: =SUM('Step 9'!J14:J17) -> $29 | G23: =SUM('Step 9'!J14:J17) -> $29 | H23: =SUM('Step 9'!$J$14:$J$17) -> $29 | I23: =SUM('Step 9'!$J$14:$J$17) -> $29 | J23: =SUM('Step 10'!$J$14:$J$17) -> 0 | K23: =SUM('Step 10'!$J$14:$J$17) -> 0 | L23: =SUM('Step 10'!$J$14:$J$17) -> 0 | M23: =SUM('Step 10'!$J$14:$J$17) -> 0 | N23: =SUM('Step 10'!$J$14:$J$17) -> 0 | O23: =SUM('Step 10'!$J$14:$J$17) -> 0 | P23: =SUM('Step 10'!$J$14:$J$17) -> 0 | Q23: =SUM('Step 10'!$J$14:$J$17) -> 0 | R23: =SUM('Step 10'!$J$14:$J$17) -> 0 | S23: =SUM('Step 10'!$J$14:$J$17) -> 0
B24: Organic mulch | D24: 0 | E24: ='Steps 7-8'!E30 -> $825 | F24: ='Step 9'!J11 -> 0 | G24: ='Step 9'!J11 -> 0 | H24: ='Step 9'!J11 -> 0 | I24: ='Step 9'!J11 -> 0 | J24: ='Step 10'!J11 -> 0 | K24: ='Step 10'!J11 -> 0 | L24: ='Step 10'!J11 -> 0 | M24: ='Step 10'!$J$11 -> 0 | N24: ='Step 10'!$J$11 -> 0 | O24: ='Step 10'!$J$11 -> 0 | P24: ='Step 10'!$J$11 -> 0 | Q24: ='Step 10'!$J$11 -> 0 | R24: ='Step 10'!$J$11 -> 0 | S24: ='Step 10'!$J$11 -> 0
B25: Synthetic mulch | E25: ='Steps 7-8'!E33 -> 0
B26: Total Supplies and Materials | D26: =SUM(D18:D25) -> $500 | E26: $25,092 | F26: $602 | G26: $171 | H26: $171 | I26: $171 | J26: =SUM(J18:J24) -> $147 | K26: =SUM(K18:K25) -> $147 | L26: =SUM(L18:L25) -> $147 | M26: =SUM(M18:M25) -> $147 | N26: $147 | O26: $147 | P26: $147 | Q26: $147 | R26: $147 | S26: =SUM(S18:S25) -> $147
B28: Equipment and Operator | D28: =SUM('Steps 7-8'!E12:E16) -> $1,200 | E28: =SUM('Steps 7-8'!J12:J18) -> $75 | F28: =SUM('Step 9'!E11:E15) -> $300 | G28: =F28 -> $300 | H28: =G28 -> $300 | I28: =H28 -> $300 | J28: =SUM('Step 10'!E11:E13) -> $225 | K28: =J28 -> $225 | L28: =K28 -> $225 | M28: =K28 -> $225 | N28: =M28 -> $225 | O28: $225 | P28: $225 | Q28: $225 | R28: $225 | S28: $225
B30: General Labor | D30: =SUM('Steps 7-8'!E22) -> 0 | E30: =SUM('Steps 7-8'!J24:J31) -> $3,105 | F30: =SUM('Step 9'!E21:E24) -> $135 | G30: =F30 -> $135 | H30: =G30 -> $135 | I30: =H30 -> $135 | J30: =SUM('Step 10'!E17:E20) -> $68 | K30: =J30 -> $68 | L30: =K30 -> $68 | M30: =K30 -> $68 | N30: =M30 -> $68 | O30: $68 | P30: $68 | Q30: $68 | R30: $68 | S30: $68
B31: Harvest Cost | G31: ='Step 13'!D15 -> $82 | H31: ='Step 13'!D16 -> $262 | I31: ='Step 13'!D17 -> $720 | J31: ='Step 13'!D18 -> $1,223 | K31: ='Step 13'!D19 -> $1,912 | L31: ='Step 13'!D20 -> $2,264 | M31: ='Step 13'!D21 -> $2,467 | N31: ='Step 13'!D22 -> $2,467 | O31: ='Step 13'!D23 -> $2,913 | P31: ='Step 13'!D24 -> $2,467 | Q31: ='Step 13'!D25 -> $2,913 | R31: ='Step 13'!D26 -> $2,467 | S31: ='Step 13'!D27 -> $2,913
B32: Drying and Husking | G32: ='Step 13'!I13 -> 0 | H32: ='Step 13'!I14 -> 0 | I32: ='Step 13'!I15 -> 0 | J32: ='Step 13'!I16 -> 0 | K32: ='Step 13'!I17 -> 0 | L32: ='Step 13'!I18 -> 0 | M32: ='Step 13'!I20 -> 0 | N32: ='Step 13'!I21 -> 0 | O32: ='Step 13'!I21 -> 0 | P32: ='Step 13'!I22 -> 0 | Q32: ='Step 13'!I23 -> 0 | R32: ='Step 13'!I24 -> 0 | S32: ='Step 13'!I25 -> 0
B34: Total Expenses | D34: =D15+D16+D26+D28+D30+D31 -> $1,906 | E34: $28,483 | F34: $1,252 | G34: $907 | H34: $1,092 | I34: $1,555 | J34: $1,895 | K34: $2,589 | L34: $2,946 | M34: $3,154 | N34: $3,159 | O34: $3,610 | P34: $3,169 | Q34: $3,620 | R34: $3,179 | S34: $3,631
B36: EBITDA (Hazelnut Rows) | D36: =D11-D34 -> $(1,906) | E36: $(28,483) | F36: $(1,252) | G36: $(801) | H36: $552 | I36: $2,968 | J36: $5,782 | K36: $9,413 | L36: $11,266 | M36: $12,334 | N36: $12,329 | O36: $14,680 | P36: $12,319 | Q36: $14,670 | R36: $12,308 | S36: $14,659
B37: Cumulative EBITDA (Hazelnut Rows) | D37: =D36 -> $(1,906) | E37: =D37+E36 -> $(30,389) | F37: =E37+F36 -> $(31,641) | G37: $(32,442) | H37: $(31,890) | I37: $(28,922) | J37: $(23,140) | K37: $(13,727) | L37: $(2,460) | M37: $9,874 | N37: $22,203 | O37: $36,883 | P37: $49,202 | Q37: $63,871 | R37: $76,180 | S37: $90,839
B39: Row-Middle/Headland Income or Expense | E39: ='alley-cropping'!J9 -> $565.68 | F39: ='alley-cropping'!J10 -> $565.68 | G39: ='alley-cropping'!J11 -> $565.68 | H39: ='alley-cropping'!J12 -> $565.68 | I39: ='alley-cropping'!J13 -> $496.81 | J39: ='alley-cropping'!J14 -> $462.38 | K39: ='alley-cropping'!J15 -> $427.94 | L39: ='alley-cropping'!J16 -> $359.07 | M39: ='alley-cropping'!J17 -> $(321.34) | N39: ='alley-cropping'!J18 -> $(321.34) | O39: ='alley-cropping'!J19 -> $(54.15) | P39: ='alley-cropping'!J20 -> $(54.15) | Q39: ='alley-cropping'!J21 -> $(54.15) | R39: ='alley-cropping'!J22 -> $(54.15) | S39: ='alley-cropping'!J23 -> $(54.15)
B40: Entire Field EBITDA | D40: =D39+D36 -> $(1,906) | E40: $(27,917) | F40: $(687) | G40: $(235) | H40: $1,118 | I40: $3,465 | J40: $6,245 | K40: $9,841 | L40: $11,625 | M40: $12,013 | N40: $12,008 | O40: $14,626 | P40: $12,265 | Q40: $14,616 | R40: $12,254 | S40: $14,605
B41: Entire Field Cumulative EBITDA | D41: =D40 -> $(1,906) | E41: =D41+E40 -> $(29,823) | F41: $(30,510) | G41: $(30,745) | H41: $(29,627) | I41: $(26,163) | J41: $(19,918) | K41: $(10,077) | L41: $1,549 | M41: $13,561 | N41: $25,569 | O41: $40,195 | P41: $52,460 | Q41: $67,075 | R41: $79,329 | S41: $93,934
B43: Per Acre EBITDA (Entire Field) | D43: =D40/'Steps 1-6'!$C$15 -> $(370) | E43: =E40/'Steps 1-6'!$C$15 -> $(5,421) | F43: =F40/'Steps 1-6'!$C$15 -> $(133) | G43: =G40/'Steps 1-6'!$C$15 -> $(46) | H43: =H40/'Steps 1-6'!$C$15 -> $217 | I43: =I40/'Steps 1-6'!$C$15 -> $673 | J43: =J40/'Steps 1-6'!$C$15 -> $1,213 | K43: =K40/'Steps 1-6'!$C$15 -> $1,911 | L43: =L40/'Steps 1-6'!$C$15 -> $2,257 | M43: =M40/'Steps 1-6'!$C$15 -> $2,333 | N43: =N40/'Steps 1-6'!$C$15 -> $2,332 | O43: =O40/'Steps 1-6'!$C$15 -> $2,840 | P43: =P40/'Steps 1-6'!$C$15 -> $2,382 | Q43: =Q40/'Steps 1-6'!$C$15 -> $2,838 | R43: =R40/'Steps 1-6'!$C$15 -> $2,380 | S43: =S40/'Steps 1-6'!$C$15 -> $2,836
B44: Per Acre Cumulative EBITDA (Entire Field) | D44: =D43 -> $(370) | E44: =D44+E43 -> $(5,791) | F44: $(5,925) | G44: $(5,970) | H44: $(5,753) | I44: $(5,080) | J44: $(3,868) | K44: $(1,957) | L44: $301 | M44: $2,633 | N44: $4,965 | O44: $7,805 | P44: $10,187 | Q44: $13,025 | R44: $15,404 | S44: $18,240

Sheet graph
B1: Hazelnut Rows EBITDA | C1: Whole Field EBITDA
A2: Year
A3: 0 | B3: =budget!D36 -> $(1,906) | C3: =budget!D41 -> $(1,906)
A4: 1 | B4: =B3+budget!E36 -> $(30,389) | C4: =budget!E41 -> $(29,823)
A5: 2 | B5: =B4+budget!F36 -> $(31,641) | C5: =budget!F41 -> $(30,510)
A6: 3 | B6: =B5+budget!G36 -> $(32,442) | C6: =budget!G41 -> $(30,745)
A7: 4 | B7: =B6+budget!H36 -> $(31,890) | C7: =budget!H41 -> $(29,627)
A8: 5 | B8: =B7+budget!I36 -> $(28,922) | C8: =budget!I41 -> $(26,163)
A9: 6 | B9: =B8+budget!J36 -> $(23,140) | C9: =budget!J41 -> $(19,918)
A10: 7 | B10: =B9+budget!K36 -> $(13,727) | C10: =budget!K41 -> $(10,077)
A11: 8 | B11: =B10+budget!L36 -> $(2,460) | C11: =budget!L41 -> $1,549
A12: 9 | B12: =B11+budget!M36 -> $9,874 | C12: =budget!M41 -> $13,561
A13: 10 | B13: =B12+budget!N36 -> $22,203 | C13: =budget!N41 -> $25,569
A14: 11 | B14: =B13+budget!O36 -> $36,883 | C14: =budget!O41 -> $40,195
A15: 12 | B15: =B14+budget!P36 -> $49,202 | C15: =budget!P41 -> $52,460
A16: 13 | B16: =B15+budget!Q36 -> $63,871 | C16: =budget!Q41 -> $67,075
A17: 14 | B17: =B16+budget!R36 -> $76,180 | C17: =budget!R41 -> $79,329
A18: 15 | B18: =B17+budget!S36 -> $90,839 | C18: =budget!S41 -> $93,934

Sheet input tables
D2: Custom Hire/Rental Rates | F2: Labor
D3: Year 0 - Site Preparation | F3: Year 0 - Site Preparation
D4: Activity | F4: Activity
D5: Herbicide burndown (strips) - ATV sprayer | F5: Project coordination/planning/consultant
D6: Herbicide burndown (whole field) - sprayer
D7: Ripping (strips) - tractor and implement | F7: Year 1 - Planting Year
D8: Ripping (whole field) - tractor and implement | F8: Project coordination/planning/consultant
D9: Plowing (whole field) - tractor and implement | F9: Planting
D10: Plowing (strips) - tractor and implement | F10: Applying mulch (organic or synthetic)
D11: Disking (whole field) - tractor and implement | F11: Installing tree tubes
D12: Disking (strips) - tractor and implement | F12: Installing drip irrigation
D13: Rototilling (strips) - tractor and implement | F13: Hand weeding
D14: Rototilling (whole field) - tractor and implement | F14: Deer repellent application
D15: Finisher (strips) - tractor and implement | F15: Years 2-4 - Pre-Production Maintenance
D16: Finisher (whole field) - tractor and implement | F16: Project coordination/planning/consultant
D17: Cover crop seeding - tractor and implement | F17: Re-planting
F18: Hand weeding
F19: Hand fertilizing
D20: Year 1 - Planting Year | F20: Applying mulch
D21: Herbicide burndown (strips) - ATV sprayer | F21: Deer repellent application
D22: Herbicide burndown (whole field) - sprayer | F22: Years 5-7 Early-Production Maintenance
D23: Tillage - tractor and implement | F23: Project coordination/planning/consultant
D24: Tree planting-tractor and planter | F24: Hand weeding
D25: Tree planting-auger | F25: Data collection - plant performance
D26: Tree planting (custom) - inclusive | F26: Hand fertilizing
D27: Watering - tractor and tank | F27: Renewal pruning
D28: Cover crop seeding - tractor and implement | F28: Deer repellent application
D29: Fertilizing-ATV | F29: Year 8 Renovation
D30: Fertilizing-Tractor | F30: Project coordination/planning/consultant
D31: In row weed control (herbicide) - ATV sprayer | F31: Plant removal - hand labor
D32: In row weed control (mulch application) - tractor | F32: Re-planting - hand labor
D33: In row weed control (herbicide) - backpack sprayer | F33: Hand weeding
D34: Clean cultivation-tractor and implement | F34: Data collection - plant performance
D35: Mowing-Tractor and implement | F35: Hand fertilizing
D36: Mowing-riding mower | F36: Renewal pruning
D37: Mulching - labor only
D38: Drip irrigation install (custom) - labor only | F38: Years 9-15
D39: Deer repellent - backpack sprayer | F39: Project coordination/planning/consultant
D40: Years 2-4 - Pre-Production Maintenance | F40: Hand weeding (woodies)
D41: In row weed control (herbicide) - ATV sprayer | F41: Data collection - plant performance
D42: In row weed control (herbicide) - backpack sprayer | F42: Hand fertilizing
D43: In row weed control (weed whip) | F43: Renewal pruning
D44: Clean cultivation - tractor and implement
D45: Mowing-tractor and implement
D46: Mowing-riding mower | F46: Step 13 Harvest Cost
D47: Fertilizing-ATV | F47: Machine
D48: Fertilizing-Tractor | F48: Hand
D49: Watering - tractor and tank
D50: Deer repellent - backpack sprayer
D51: Years 5-7 Early Production Maintenance
D52: In row weed control (herbicide) - ATV sprayer
D53: In row weed control (herbicide) - backpack sprayer
D54: In row weed control (weed whip)
D55: Mowing-tractor and implement
D56: Mowing-riding mower
D57: Fertilizing-ATV
D58: Fertilizing-Tractor
D60: Year 8 Renovation Year
D61: Plant removal - backpack sprayer
D62: Plant removal - backhoe
D63: In row weed control (herbicide) - ATV sprayer
D64: In row weed control (herbicide) - backpack sprayer
D65: Mowing-Tractor and implement
D66: Mowing-riding mower
D67: Fertilizing-ATV
D68: Fertilizing-Tractor
D69: Watering - tractor and tank
D71: Years 9-15
D72: In row weed control (herbicide) - ATV sprayer
D73: In row weed control (herbicide) - backpack sprayer
D74: Mowing-Tractor and implement
D75: Mowing-riding mower
D76: Fertilizing-ATV
D77: Fertilizing-Tractor
